[Event "45th FIDE Olympiad 2024"]
[Site "Budapest"]
[Date "2024.09.16"]
[Round "6.13"]
[White "Caruana, Fabiano"]
[Black "Deac, Bogdan-Daniel"]
[Result "1/2-1/2"]
[ECO "C54"]
[WhiteElo "2798"]
[BlackElo "2680"]
[Annotator "TA"]
[PlyCount "249"]
[EventDate "2024.09.05"]
[EventType "team-tourn"]
[EventCountry "HUN"]
[SourceTitle "playchess.com"]
[Source "ChessBase"]
[SourceQuality "1"]
[WhiteTeam "United States of America"]
[BlackTeam "Romania"]
[BlackTeamCountry "ROU"]
[TimeControl "40/5400+30:1800+30"]

{[%evp 9,249,20,27,16,16,13,23,20,27,18,28,0,0,0,20,16,12,16,6,7,13,20,16,15,20,0,16,33,36,0,48,41,42,54,73,62,135,37,33,42,36,54,31,34,55,62,70,63,61,82,83,87,74,75,65,55,70,44,42,38,53,40,84,74,89,91,84,91,98,91,80,80,95,63,70,0,4,7,0,2,8,0,0,1,5,0,0,0,0,0,0,0,40,35,39,37,34,33,37,37,31,37,35,37,39,34,36,34,34,31,31,34,46,54,47,47,65,65,65,65,59,58,58,50,42,22,70,57,70,70,70,16,16,9,70,70,72,70,72,65,72,65,65,65,72,65,65,58,58,58,65,65,65,65,65,58,58,58,58,58,58,58,58,58,58,58,58,58,58,58,65,65,65,58,58,58,58,58,58,58,58,58,58,58,58,58,58,58,58,58,58,58,58,58,58,58,58,58,65,65,58,58,65,65,65,65,65,65,58,55,55,55,55,55,55,54,57,57,57,44,50,43,50,50,50,25,25,25,0,0,0,0,0,0,0,0,0,0,0,0,0,8]} 1. e4 {[%emt 0:00:04]} e5 {[%emt 0:00:01]} 2. Nf3 {[%emt 0:00:09]} Nc6 {[%emt 0:00:02]} 3. Bc4 {[%emt 0:00:06]} Nf6 {[%emt 0:00:04]} 4. d3 {[%emt 0:00:04]} Bc5 {[%emt 0:00:04]} 5. c3 {[%emt 0:00:05]} d6 {[%emt 0:00:02]} 6. a4 {[%emt 0:00:30]} a6 {[%emt 0:01:30]} 7. O-O {[%emt 0:00:19]} Ba7 {[%emt 0:00:13]} 8. Re1 {[%emt 0:00:08] White has an edge.} O-O {[%emt 0:00:25]} 9. h3 {[%emt 0:00:22]} Re8 {[%emt 0:03:43]} 10. Na3 {[%emt 0:00:26]} h6 {[%emt 0:07:03]} 11. b4 {[%emt 0:00:59]} Be6 {[%emt 0:03:16]} 12. Bxe6 {[%emt 0:00:17]} Rxe6 {[%emt 0:00:06]} 13. Nc2 {[%emt 0:00:04]} Ne7 {[%emt 0:15:46]} 14. c4 {[%emt 0:09:05]} a5 {[%emt 0:04:21]} 15. b5 {[%emt 0:10:51]} Ng6 {[%emt 0:07:31]} 16. Ne3 {[%emt 0:03:39]} Bxe3 {[%emt 0:09:58]} 17. Bxe3 {[%emt 0:05:26]} b6 {[%emt 0:00:25]} 18. Nd2 {[%emt 0:01:12]} Nd7 {[%emt 0:03:51]} 19. Nf1 {[%emt 0:12:09]} Qf8 {[%emt 0:14:22]} (19... Nf4 $11) 20. Ng3 $14 {[%emt 0:01:02]} Rae8 {[%emt 0:00:02]} 21. Ra2 {[%emt 0:08:10]} Nf4 {[%emt 0:09:34]} 22. d4 {[%emt 0:12:33]} g5 {[%emt 0:00:07]} (22... Rd8 $14) 23. Nf5 {[%emt 0:11:03]} (23. d5 $16 Rg6 24. Nf5) 23... exd4 {[%emt 0:00:36]} 24. Bxf4 {[%emt 0:02:35]} gxf4 {[%emt 0:00:04]} 25. Qxd4 {[%emt 0:00:40]} Kh7 {[%emt 0:10:14]} 26. f3 {[%emt 0:02:28]} Qh8 {[%emt 0:07:22]} 27. Qxh8+ {[%emt 0:03:52]} Kxh8 {[%emt 0:02:00]} 28. Nd4 {[%emt 0:00:04] White is more active.} Rf6 {[%emt 0:00:49]} 29. Ne2 {[%emt 0:00:23]} Nc5 {[%emt 0:00:27]} 30. Nc3 {[%emt 0:08:46]} Rg6 {[%emt 0:00:05]} 31. Nd5 {[%emt 0:01:13][%csl LRc7,LRf4]} Ne6 {[%emt 0:00:06]} 32. e5 {[%emt 0:00:51] [#] Strongly threatening exd6.} Nd4 {[%emt 0:00:09][%csl LRe5,LRf3]} 33. Kf1 {[%emt 0:00:09]} dxe5 {[%emt 0:00:33]} 34. Nxf4 {[%emt 0:02:11]} Rd6 {[%emt 0:00:20]} 35. Nd5 {[%emt 0:00:36]} Kg7 {[%emt 0:01:51] [#]} 36. Rd2 $1 {[%emt 0:01:45] And now Rxd4 would win.} (36. Nxc7 $6 Rc8 37. Na6 (37. Nd5 Rxc4 38. Ne3 Rc5 $11) 37... Rxc4 $11) 36... Nb3 {[%emt 0:00:50]} 37. Rdd1 {[%emt 0:00:03]} Red8 {[%emt 0:00:29]} 38. Rxe5 {[%emt 0:00:32]} c6 {[%emt 0:00:10]} 39. bxc6 {[%emt 0:00:07]} Rxc6 {[%emt 0:00:01]} 40. Re3 {[%emt 0:02:37]} Nc5 {[%emt 0:00:31]} 41. Ra3 {[%emt 0:30:10]} Ne6 {[%emt 0:31:02]} 42. Rb1 {[%emt 0:00:00]} (42. Rc3 $14) 42... Rxc4 $11 {[%emt 0:00:00]} 43. Ne3 {[%emt 0:00:00]} Rc6 {[%emt 0:00:00]} 44. Rab3 {[%emt 0:00:00]} Kg6 {[%emt 0:00:00]} 45. Rxb6 {[%emt 0:00:00]} Rxb6 {[%emt 0:00:00]} 46. Rxb6 {[%emt 0:00:00][%mdl 4096] Endgame. Rb5 would now be deadly. KRN-KRN} Rd4 {[%emt 0:00:00]} 47. g3 {[%emt 0:00:00]} Rxa4 {[%emt 0:00:00]} 48. f4 {[%emt 0:00:00]} Kg7 {[%emt 0:00:00]} 49. Nf5+ {[%emt 0:00:00]} Kg6 {[%emt 0:00:00]} 50. Nd6 {[%emt 0:00:00] f5+ is the strong threat.} Nxf4 {[%emt 0:00:00]} 51. gxf4 {[%emt 0:00:00]} Rxf4+ {[%emt 0:00:00] KRN-KR} 52. Ke2 {[%emt 0:00:00]} Rf6 {[%emt 0:00:00]} 53. Ke3 {[%emt 0:00:00]} Re6+ {[%emt 0:00:00]} 54. Kd4 {[%emt 0:00:00]} f6 {[%emt 0:00:00]} 55. Ra6 {[%emt 0:00:00]} a4 {[%emt 0:00:00]} 56. Kd5 {[%emt 0:00:00]} Re5+ {[%emt 0:00:00]} 57. Kc6 {[%emt 0:00:00]} Rh5 {[%emt 0:00:01]} 58. Rxa4 {[%emt 0:00:00]} Rxh3 {[%emt 0:00:07]} 59. Rg4+ {[%emt 0:00:00]} Kh5 {[%emt 0:00:11]} 60. Rg8 {[%emt 0:00:00]} Rd3 {[%emt 0:01:55]} 61. Ne4 {[%emt 0:00:00]} Rf3 {[%emt 0:02:54]} 62. Kd5 {[%emt 0:00:00]} Rd3+ {[%emt 0:02:05]} 63. Kc4 {[%emt 0:00:00]} Rf3 {[%emt 0:00:09]} 64. Kd4 {[%emt 0:00:00]} Kh4 {[%emt 0:00:55]} 65. Rg6 {[%emt 0:00:05]} h5 {[%emt 0:00:06]} 66. Nd2 {[%emt 0:00:53]} ({Reject} 66. Rxf6 Rxf6 67. Nxf6 Kg3 $11) (66. Nxf6 Rg3 67. Rh6 Kg5 $16) 66... Ra3 {[%emt 0:00:40]} 67. Ke4 {[%emt 0:00:38][%cal Oe4f4]} Kh3 {[%emt 0:01:11]} (67... Ra4+ $11 68. Kd3 f5) 68. Nf1 {[%emt 0:01:02]} h4 {[%emt 0:03:16]} 69. Ne3 {[%emt 0:00:36] Prevents f5+} (69. Rxf6 Kg2 $11) 69... f5+ {[%emt 0:00:49]} 70. Kf4 {[%emt 0:00:02]} ({But not} 70. Kxf5 Rxe3 71. Kf4 Ra3 $11) ({White should play} 70. Kf3 $14) 70... Ra4+ {[%emt 0:00:23]} 71. Kxf5 {[%emt 0:01:14]} Ra8 {[%emt 0:00:36]} ({Black should try} 71... Kh2 $1 $11) 72. Ke4 {[%emt 0:01:56]} Rf8 {[%emt 0:00:28]} 73. Nf5 {[%emt 0:01:22]} Rh8 {[%emt 0:00:10]} 74. Nd4 {[%emt 0:02:15]} Re8+ {[%emt 0:00:21]} 75. Kf4 {[%emt 0:00:06]} Rf8+ {[%emt 0:00:06]} 76. Ke3 {[%emt 0:00:04]} Re8+ {[%emt 0:00:46]} 77. Kf2 {[%emt 0:00:04]} Ra8 {[%emt 0:00:55]} 78. Rh6 {[%emt 0:01:42]} Kg4 {[%emt 0:00:16]} 79. Nc2 {[%emt 0:01:27]} Ra2 {[%emt 0:00:32]} 80. Rc6 {[%emt 0:00:02]} Rb2 {[%emt 0:00:16]} 81. Rc4+ {[%emt 0:00:08]} Kg5 {[%emt 0:00:05]} 82. Kg2 {[%emt 0:00:03]} Kh5 {[%emt 0:01:06]} 83. Kf3 {[%emt 0:00:31]} Rb3+ {[%emt 0:00:20]} 84. Ne3 {[%emt 0:00:11]} h3 {[%emt 0:00:14]} 85. Rc8 {[%emt 0:00:08]} Rb6 {[%emt 0:00:10]} 86. Kg3 {[%emt 0:00:15]} Rb3 {[%emt 0:00:09]} 87. Rh8+ {[%emt 0:00:06]} Kg5 {[%emt 0:00:08]} 88. Kf3 {[%emt 0:00:01]} Rb4 {[%emt 0:00:23]} 89. Rxh3 {[%emt 0:00:05]} Rf4+ {[%emt 0:00:12]} 90. Ke2 {[%emt 0:00:02]} Rd4 {[%emt 0:00:10]} 91. Rh8 {[%emt 0:00:04]} Kf6 {[%emt 0:00:14]} 92. Kf3 {[%emt 0:00:03]} Ra4 {[%emt 0:00:28]} 93. Rc8 {[%emt 0:00:16]} Ke6 {[%emt 0:00:09]} 94. Nc4 {[%emt 0:00:04]} Ra1 {[%emt 0:00:06]} 95. Ke4 {[%emt 0:00:04]} Re1+ {[%emt 0:00:09]} 96. Ne3 {[%emt 0:00:02]} Re2 {[%emt 0:00:13]} 97. Rc6+ {[%emt 0:00:04]} Kd7 {[%emt 0:00:04]} 98. Rh6 {[%emt 0:00:03]} Re1 {[%emt 0:00:12]} 99. Kd4 {[%emt 0:00:03]} Re2 {[%emt 0:00:07]} 100. Nf5 {[%emt 0:00:19]} Rd2+ {[%emt 0:00:24]} 101. Kc5 {[%emt 0:00:05]} Rc2+ {[%emt 0:00:40]} 102. Kd5 {[%emt 0:00:04]} Rd2+ {[%emt 0:00:08]} 103. Nd4 {[%emt 0:00:03]} Rd1 {[%emt 0:01:41]} 104. Rh7+ {[%emt 0:00:06]} Kd8 {[%emt 0:00:14]} 105. Ke5 {[%emt 0:00:16]} Ke8 {[%emt 0:01:30]} 106. Nc6 {[%emt 0:00:02]} Re1+ {[%emt 0:01:03]} 107. Kd6 {[%emt 0:00:45]} Rd1+ {[%emt 0:00:13]} 108. Ke6 {[%emt 0:00:04][%cal Rh7h8]} Re1+ {[%emt 0:00:05]} 109. Ne5 {[%emt 0:00:02][%cal Rh7h8]} Kd8 {[%emt 0:00:05]} 110. Rg7 {[%emt 0:00:24]} Kc8 {[%emt 0:00:27]} 111. Rg3 {[%emt 0:00:31]} Re2 {[%emt 0:01:10]} 112. Rc3+ {[%emt 0:00:21]} Kd8 {[%emt 0:01:51]} 113. Rc1 {[%emt 0:02:45]} Re4 {[%emt 0:00:24]} 114. Rh1 {[%emt 0:00:51]} Re2 {[%emt 0:01:30]} 115. Rh3 {[%emt 0:00:30]} (115. Rh8+ Kc7 116. Rh7+ Kc8) 115... Re1 {[%emt 0:00:37]} 116. Rh7 {[%emt 0:01:49]} Kc8 {[%emt 0:00:20]} 117. Rg7 {[%emt 0:00:17]} Re2 {[%emt 0:00:08]} 118. Kd5 {[%emt 0:00:35]} Rd2+ {[%emt 0:00:06]} 119. Kc5 {[%emt 0:00:02] The position is equal.} Rc2+ {[%emt 0:00:18]} 120. Nc4 {[%emt 0:00:02]} Rc1 {[%emt 0:00:14]} 121. Kd5 {[%emt 0:00:21]} Kd8 {[%emt 0:00:27]} 122. Kd6 {[%emt 0:00:06][%cal Rg7g8]} Rd1+ {[%emt 0:00:10]} 123. Ke6 {[%emt 0:00:03]} Re1+ {[%emt 0:00:06]} 124. Ne5 {[%emt 0:00:02]} Kc8 {[%emt 0:00:04]} 125. Re7 {[%emt 0:00:26] Weighted Error Value: White=0.08 (flawless) /Black=0.07 (flawless) .  Mistake:       	White=3     	Black=4      Inaccurate:     	White=4     	Black=2      OK:         	White=52    	Black=52     Best:        	White=4     	Black=6      Strong:       	White=1     	---} 1/2-1/2

[Event "45th FIDE Olympiad 2024"]
[Site "Budapest"]
[Date "2024.09.16"]
[Round "6.13"]
[White "Mathurin, Nathaniel"]
[Black "Kigigha, Bomo Lovet"]
[Result "0-1"]
[WhiteElo "1982"]
[BlackElo "2217"]
[PlyCount "86"]
[EventDate "2024.09.05"]
[EventType "team-tourn"]
[EventCountry "HUN"]
[WhiteTeam "Saint Lucia"]
[BlackTeam "Nigeria"]
[BlackTeamCountry "NGR"]
[TimeControl "40/5400+30:1800+30"]

1. d4 Nf6 2. Nf3 e6 3. c4 Bb4+ 4. Nbd2 b6 5. a3 Bxd2+ 6. Qxd2 Bb7 7. g3 O-O 8. Bg2 d6 9. O-O Qc8 10. b4 Nbd7 11. Bb2 Be4 12. Rfd1 Qb7 13. Qc3 Rac8 14. Rac1 h6 15. c5 Qc6 16. d5 Bxd5 17. Nd4 Qa8 18. c6 Bxg2 19. cxd7 Bh3 20. Nc6 Rcd8 21. g4 Bxg4 22. Qg3 e5 23. Nxd8 Qxd8 24. f4 Bxe2 25. fxe5 Nh5 26. Qh3 Qg5+ 27. Kf2 Bg4 28. Qe3 Qf5+ 29. Kg1 Bxd1 30. exd6 Qxd7 31. dxc7 Bg4 32. Qd4 Qxd4+ 33. Bxd4 Nf4 34. Rc4 b5 35. c8=Q Bxc8 36. Rc2 Bf5 37. Ra2 a6 38. Kf2 Be6 39. Ra1 Rc8 40. Ke3 Rc4 41. Rf1 g5 42. Ra1 Nd5+ 43. Ke4 Ne7 {0-} 0-1

[Event "45th FIDE Olympiad 2024"]
[Site "Budapest"]
[Date "2024.09.16"]
[Round "6.14"]
[White "Shevchenko, Kirill"]
[Black "So, Wesley"]
[Result "1/2-1/2"]
[ECO "E21"]
[WhiteElo "2673"]
[BlackElo "2752"]
[Annotator "TA"]
[PlyCount "60"]
[EventDate "2024.09.05"]
[EventType "team-tourn"]
[EventCountry "HUN"]
[SourceTitle "playchess.com"]
[Source "ChessBase"]
[SourceQuality "1"]
[WhiteTeam "Romania"]
[BlackTeam "United States of America"]
[WhiteTeamCountry "ROU"]
[TimeControl "40/5400+30:1800+30"]

{[%evp 10,60,6,14,20,0,12,0,0,0,0,0,0,0,0,0,0,0,0,0,0,0,0,-7,-7,-18,-11,-11,-21,-9,-8,-28,-35,-29,-22,-29,-13,-20,-24,-29,0,0,0,0,0,0,0,0,7,0,0,0,0]} 1. d4 {[%emt 0:00:11]} Nf6 {[%emt 0:00:20]} 2. c4 {[%emt 0:00:26]} e6 {[%emt 0:01:15]} 3. Nc3 {[%emt 0:00:07]} Bb4 {[%emt 0:00:06]} 4. Nf3 {[%emt 0:00:05]} O-O {[%emt 0:00:47]} 5. Bg5 {[%emt 0:00:08][%cal Bc1g5,Bg5h4,Bh4g3][%mdl 32]} c5 {[%emt 0:00:17]} 6. Rc1 {[%emt 0:00:15]} cxd4 {[%emt 0:02:04]} 7. Nxd4 {[%emt 0:00:24]} h6 {[%emt 0:00:24]} 8. Bh4 {[%emt 0:00:17]} d5 {[%emt 0:00:22]} 9. cxd5 {[%emt 0:00:07]} g5 {[%emt 0:00:59]} 10. Bg3 {[%emt 0:00:10] Inhibits e5.} Qxd5 {[%emt 0:00:06]} 11. e3 {[%emt 0:00:13]} Qxa2 {[%emt 0:00:30]} 12. Bd3 {[%emt 0:00:12]} Qxb2 {[%emt 0:00:08]} 13. O-O $1 {[%emt 0:00:17]} Bxc3 {[%emt 0:00:04]} 14. Rc2 {[%emt 0:00:14]} Qb4 {[%emt 0:00:35]} 15. Nb5 {[%emt 0:00:11]} e5 {[%emt 0:01:05][%cal Ob8c6] With the idea ...Nc6!} 16. Rxc3 {[%emt 0:00:06]} Nc6 {[%emt 0:00:22] ...Rd8 is the strong threat.} 17. f4 {[%emt 0:00:11]} a6 {[%emt 0:16:49]} 18. Rb3 {[%emt 0:01:05]} Qe7 {[%emt 0:08:38]} 19. fxg5 {[%emt 0:00:39]} Ng4 {[%emt 0:01:20]} 20. Nd6 {[%emt 0:00:31]} Nxe3 $1 {[%emt 0:00:06]} (20... Qxd6 $2 {is the wrong capture.} 21. Bh7+ Kxh7 22. Qxd6 $18) 21. Bh7+ {[%emt 0:00:08]} Kxh7 {[%emt 0:00:06]} 22. Rxe3 {[%emt 0:00:03]} Qxg5 {[%emt 0:00:15]} 23. Qe1 {[%emt 0:00:19][%cal Od6e4] [#] Hoping for Ne4!} Qg6 {[%emt 0:07:12]} 24. Nc4 {[%emt 0:01:07]} Be6 {[%emt 0:09:48]} 25. Nxe5 {[%emt 0:02:23] The position is equal.} Nxe5 {[%emt 0:00:07]} 26. Bxe5 {[%emt 0:00:36]} Rg8 {[%emt 0:01:11]} 27. Rg3 {[%emt 0:12:29]} Qh5 {[%emt 0:00:47]} 28. Qe4+ {[%emt 0:22:52]} f5 {[%emt 0:05:24]} 29. Qxb7+ {[%emt 0:00:59]} Qf7 {[%emt 0:00:06]} 30. Qxf7+ {[%emt 0:00:43]} Bxf7 {[%emt 0:00:26] An uneventful encounter.   Weighted Error Value: White=0.02 (flawless) /Black=0.02 (flawless) .  Inaccurate:     	---       	Black=1      OK:         	White=15    	Black=15     Best:        	---       	Black=4      Strong:       	White=1     	Black=1} 1/2-1/2

[Event "45th FIDE Olympiad 2024"]
[Site "Budapest"]
[Date "2024.09.16"]
[Round "6.14"]
[White "Osunfuyi, Abimbola"]
[Black "James, Justin"]
[Result "1-0"]
[WhiteElo "2164"]
[BlackElo "1745"]
[PlyCount "83"]
[EventDate "2024.09.05"]
[EventType "team-tourn"]
[EventCountry "HUN"]
[WhiteTeam "Nigeria"]
[BlackTeam "Saint Lucia"]
[WhiteTeamCountry "NGR"]
[TimeControl "40/5400+30:1800+30"]

1. Nf3 d5 2. c4 c6 3. e3 Nf6 4. Nc3 e6 5. Qc2 Be7 6. b3 Nbd7 7. Bb2 O-O 8. Be2 Re8 9. Rg1 a6 10. g4 Nf8 11. g5 N6d7 12. h4 b5 13. h5 Bb7 14. Bd3 e5 15. g6 fxg6 16. hxg6 h6 17. Bf5 Bf6 18. d3 Nb6 19. Ne2 Bc8 20. Ng3 Bxf5 21. Nxf5 Qd7 22. e4 d4 23. Nh2 Nc8 24. Ng4 Bg5 25. Bc1 Bxc1 26. Qxc1 Nd6 27. Nfxh6+ gxh6 28. Nf6+ Kg7 29. Nxd7 Nxd7 30. cxb5 Nxb5 31. Rh1 Rh8 32. Qxc6 Ra7 33. Qe6 Nf6 34. Qxe5 Rc7 35. a4 Rhc8 36. Qf4 Ng8 37. axb5 axb5 38. Qe5+ Nf6 39. Ra6 Rc1+ 40. Ke2 R1c2+ 41. Kf3 Rf8 42. Ra7+ 1-0

[Event "45th FIDE Olympiad 2024"]
[Site "Budapest"]
[Date "2024.09.16"]
[Round "6.15"]
[White "Aronian, Levon"]
[Black "Nisipeanu, Liviu-Dieter"]
[Result "1/2-1/2"]
[ECO "C55"]
[WhiteElo "2729"]
[BlackElo "2580"]
[Annotator "TA"]
[PlyCount "58"]
[EventDate "2024.09.05"]
[EventType "team-tourn"]
[EventCountry "HUN"]
[SourceTitle "playchess.com"]
[Source "ChessBase"]
[SourceQuality "1"]
[WhiteTeam "United States of America"]
[BlackTeam "Romania"]
[BlackTeamCountry "ROU"]
[TimeControl "40/5400+30:1800+30"]

{[%evp 10,58,14,0,8,14,7,9,23,35,20,0,11,23,14,13,0,0,0,1,35,28,37,34,43,33,37,42,34,15,46,30,64,73,69,64,77,35,74,41,35,43,88,0,0,0,54,0,0,0,44]} 1. e4 {[%emt 0:00:05]} e5 {[%emt 0:00:29]} 2. Nf3 {[%emt 0:00:08]} Nc6 {[%emt 0:00:06]} 3. Bc4 {[%emt 0:00:10]} Nf6 {[%emt 0:00:41]} 4. d3 {[%emt 0:00:06]} Be7 {[%emt 0:00:04]} 5. Nc3 {[%emt 0:01:11]} d6 {[%emt 0:00:38]} 6. a3 {[%emt 0:00:19]} O-O {[%emt 0:00:54]} 7. Be3 {[%emt 0:00:06]} Be6 {[%emt 0:05:45]} 8. Nd5 {[%emt 0:00:05]} Bxd5 {[%emt 0:03:48]} 9. exd5 {[%emt 0:00:06]} Nb8 {[%emt 0:00:03]} 10. b4 {[%emt 0:00:46]} c6 {[%emt 0:00:35]} 11. dxc6 {[%emt 0:00:06]} bxc6 {[%emt 0:00:03]} 12. O-O {[%emt 0:00:16]} Nbd7 {[%emt 0:03:02]} 13. Bb3 {[%emt 0:03:48]} a5 {[%emt 0:06:47]} 14. c4 {[%emt 0:01:59][%cal Bc2c4,Bc4c5][%mdl 32]} Rb8 {[%emt 0:20:20]} 15. Bd2 {[%emt 0:02:03]} axb4 {[%emt 0:07:37]} 16. axb4 {[%emt 0:00:14]} d5 {[%emt 0:00:03]} 17. c5 {[%emt 0:03:49]} Qc7 {[%emt 0:00:59]} 18. Re1 {[%emt 0:04:43]} Rfe8 {[%emt 0:00:23]} 19. h3 {[%emt 0:02:21]} Bf8 {[%emt 0:00:31]} 20. d4 {[%emt 0:06:54]} exd4 {[%emt 0:12:24]} 21. Rxe8 {[%emt 0:01:53]} Rxe8 {[%emt 0:00:05]} 22. Nxd4 {[%emt 0:00:40]} Ne4 {[%emt 0:00:20]} 23. Be3 {[%emt 0:05:01]} Ne5 {[%emt 0:06:43]} 24. Rc1 {[%emt 0:08:54]} g6 $1 {[%emt 0:11:05]} 25. Ba4 {[%emt 0:11:16]} Nc4 {[%emt 0:02:19]} 26. Qf3 {[%emt 0:07:44]} (26. Bxc6 $6 Nxe3 27. fxe3 Bh6 $11) 26... Ne5 {[%emt 0:06:41] Excellent horsemanship.} 27. Qd1 {[%emt 0:00:06]} Nc4 {[%emt 0:00:11]} 28. Qf3 {[%emt 0:08:15]} ({Much weaker is} 28. Bxc6 Nxe3 29. fxe3 Bh6 $11) (28. Rxc4 $5 dxc4 29. Bxc6 $14) 28... Ne5 {[%emt 0:00:07]} 29. Qd1 {[%emt 0:00:05]} Nc4 {[%emt 0:00:35] Weighted Error Value: White=0.14 (very precise) /Black=0.11 (very precise) .  Inaccurate:     	White=3     	Black=5      OK:         	White=7     	Black=9      Best:        	White=2     	---        Strong:       	---       	Black=1} 1/2-1/2

[Event "45th FIDE Olympiad 2024"]
[Site "Budapest"]
[Date "2024.09.16"]
[Round "6.15"]
[White "Elizee, Kaieem"]
[Black "Ofowino, Toritsemuwa"]
[Result "1/2-1/2"]
[WhiteElo "1701"]
[BlackElo "2020"]
[PlyCount "171"]
[EventDate "2024.09.05"]
[EventType "team-tourn"]
[EventCountry "HUN"]
[WhiteTeam "Saint Lucia"]
[BlackTeam "Nigeria"]
[BlackTeamCountry "NGR"]
[TimeControl "40/5400+30:1800+30"]

1. c4 c6 2. Nc3 d5 3. cxd5 cxd5 4. d4 Nf6 5. Nf3 Nc6 6. Bf4 a6 7. e3 Bg4 8. Be2 e6 9. O-O Bd6 10. Bxd6 Qxd6 11. Rc1 O-O 12. h3 Bh5 13. Na4 Nd7 14. a3 a5 15. Qd2 Bxf3 16. Bxf3 b5 17. Nc5 Nb6 18. b3 b4 19. a4 Nd7 20. Rfe1 Rac8 21. g3 Ne7 22. Nd3 Qb6 23. Bg2 Nf5 24. Rxc8 Rxc8 25. Rc1 Qb7 26. Rc2 Nd6 27. Qc1 Rxc2 28. Qxc2 Qc8 29. Qxc8+ Nxc8 30. Kf1 Kf8 31. Ke2 Ke7 32. h4 Kd6 33. f4 f6 34. Bh3 Ncb6 35. Kd2 Nc8 36. Ke2 Ke7 37. Kf3 Nd6 38. Nf2 f5 39. Bf1 Nf6 40. Bd3 h6 41. Ke2 Nf7 42. Kf3 Nd6 43. Ke2 Nh7 44. Kf3 Kf6 45. Ke2 g6 46. Kf3 Kg7 47. Bc2 Kf6 48. Bd3 g5 49. hxg5+ hxg5 50. Ke2 Kg6 51. Kf3 Nf6 52. Kg2 Kh5 53. Be2+ Kg6 54. Bd3 Kh6 55. Kh3 Kh5 56. Be2+ g4+ 57. Kg2 Nfe4 58. Bd3 Nc3 59. Kf1 Kh6 60. Ke1 Kg7 61. Kd2 Kf6 62. Kc2 Ke7 63. Kd2 Kd7 64. Kc2 Ne8 65. Kd2 Nf6 66. Bc2 Nh5 67. Nh1 Kd6 68. Ke1 Ke7 69. Kf2 Nf6 70. Ke1 Kf7 71. Nf2 Nh5 72. Nh1 Ke7 73. Kd2 Ne4+ 74. Bxe4 dxe4 75. Kc2 Kd6 76. Kd2 Nf6 77. Nf2 Nd5 78. Nd1 Nb6 79. Nb2 Kc6 80. Nc4 Nxc4+ 81. bxc4 Kd6 82. Kc2 Kc6 83. Kb3 Kd6 84. Kc2 Kc6 85. Kb3 Kd6 86. Kc2 1/2-1/2

[Event "45th FIDE Olympiad 2024"]
[Site "Budapest"]
[Date "2024.09.16"]
[Round "6.16"]
[White "Parligras, Mircea-Emilian"]
[Black "Robson, Ray"]
[Result "1/2-1/2"]
[ECO "D38"]
[WhiteElo "2537"]
[BlackElo "2700"]
[Annotator "TA"]
[PlyCount "99"]
[EventDate "2024.09.05"]
[EventType "team-tourn"]
[EventCountry "HUN"]
[SourceTitle "playchess.com"]
[Source "ChessBase"]
[SourceQuality "1"]
[WhiteTeam "Romania"]
[BlackTeam "United States of America"]
[WhiteTeamCountry "ROU"]
[TimeControl "40/5400+30:1800+30"]

{[%evp 18,99,9,6,12,10,11,5,6,11,10,15,9,12,11,21,12,6,8,7,9,0,5,4,10,6,6,7,5,9,1,8,2,6,4,0,6,8,4,0,0,0,4,10,8,4,7,5,13,13,13,13,14,13,13,13,13,13,13,13,13,13,13,13,13,9,14,9,9,9,9,9,9,9,14,9,9,9,9,0,14,0,9,0]} 1. d4 {[%emt 0:00:04]} Nf6 {[%emt 0:00:13]} 2. c4 {[%emt 0:00:14]} e6 {[%emt 0:00:24]} 3. Nf3 {[%emt 0:00:06]} d5 {[%emt 0:00:21]} 4. Nc3 {[%emt 0:01:51]} Bb4 {[%emt 0:00:38]} 5. Bg5 {[%emt 0:00:45]} h6 {[%emt 0:00:39]} 6. Bxf6 {[%emt 0:00:25]} Qxf6 {[%emt 0:00:13]} 7. e3 {[%emt 0:00:17]} O-O {[%emt 0:00:54]} 8. Rc1 {[%emt 0:00:33]} dxc4 {[%emt 0:01:54]} 9. Bxc4 {[%emt 0:00:27]} c5 {[%emt 0:00:37]} 10. O-O {[%emt 0:00:47] Hoping for Ne4. The position is equal.} cxd4 {[%emt 0:00:48]} 11. Ne4 {[%emt 0:00:37]} Qe7 {[%emt 0:01:02]} 12. a3 {[%emt 0:00:51]} Ba5 {[%emt 0:00:44]} 13. Qxd4 {[%emt 0:00:31]} Rd8 {[%emt 0:00:54] Against Qd6} 14. Qc5 {[%emt 0:05:47]} Qxc5 {[%emt 0:02:07]} 15. Nxc5 {[%emt 0:00:26]} Nd7 {[%emt 0:09:11]} 16. Nb3 {[%emt 0:01:36]} Bb6 {[%emt 0:00:31]} 17. Be2 {[%emt 0:01:25]} Nf6 {[%emt 0:06:17]} 18. Ne5 {[%emt 0:04:05]} Bd7 {[%emt 0:08:02]} 19. Nc5 {[%emt 0:02:50]} Bxc5 {[%emt 0:07:46]} 20. Rxc5 {[%emt 0:00:09]} Rac8 {[%emt 0:01:10] Against Rc7} 21. Rfc1 {[%emt 0:05:04] [#] Nxd7 is the strong threat.} Rxc5 {[%emt 0:01:09]} 22. Rxc5 {[%emt 0:00:26]} Be8 {[%emt 0:01:03]} 23. Kf1 {[%emt 0:01:36]} Ne4 {[%emt 0:03:06]} 24. Rc7 {[%emt 0:00:48]} Nd6 {[%emt 0:00:30] [#]} 25. e4 $1 {[%emt 0:09:58]} Kf8 {[%emt 0:07:41]} 26. f3 {[%emt 0:00:55][%cal Bf2f3,Bf3f4,Bf4e5][%mdl 32]} Rc8 {[%emt 0:03:38]} (26... f6 $5 27. Nd3 $8 Rd7 28. Rxd7 Bxd7 $15) 27. Rxc8 {[%emt 0:00:13]} Nxc8 $11 {[%emt 0:00:08][%mdl 4096] Endgame. KBN-KBN} 28. Nc4 {[%emt 0:00:44]} f6 {[%emt 0:03:51]} 29. f4 {[%emt 0:05:16]} Ke7 {[%emt 0:11:46]} 30. e5 {[%emt 0:02:26]} fxe5 {[%emt 0:04:19]} 31. Nxe5 {[%emt 0:05:40]} Nd6 {[%emt 0:06:49]} 32. Kf2 {[%emt 0:02:04]} Nf7 {[%emt 0:00:45]} 33. Ke3 {[%emt 0:04:17]} Nxe5 {[%emt 0:01:25]} 34. fxe5 {[%emt 0:00:06] KB-KB} a5 {[%emt 0:05:16]} 35. Kd4 {[%emt 0:03:04] Kc5 would now be deadly.} (35. Bf3 $5 b6 $8 36. h4 $11) 35... b6 {[%emt 0:00:08]} 36. Bf3 {[%emt 0:04:01]} Bb5 {[%emt 0:01:06]} 37. g3 {[%emt 0:00:28]} Kd7 {[%emt 0:00:42]} 38. h4 {[%emt 0:00:51]} Ke7 {[%emt 0:00:34]} 39. Kc3 {[%emt 0:01:23]} Kd7 {[%emt 0:02:05]} 40. b4 {[%emt 0:00:50]} axb4+ {[%emt 0:00:41]} 41. Kxb4 {[%emt 0:30:29]} Ba6 {[%emt 0:34:29]} 42. Bd1 {[%emt 0:02:43]} Bb7 {[%emt 0:00:00]} 43. Kb5 {[%emt 0:00:00]} Kc7 {[%emt 0:00:00]} 44. Bg4 {[%emt 0:00:00]} Bc6+ {[%emt 0:00:00]} 45. Kb4 {[%emt 0:00:00]} Bd7 {[%emt 0:00:00]} 46. Bh3 {[%emt 0:00:00]} Bc8 {[%emt 0:00:00]} 47. Kb5 {[%emt 0:00:00]} Bd7+ {[%emt 0:00:00]} 48. Kb4 {[%emt 0:00:00]} Bc8 {[%emt 0:00:00]} 49. Kb5 {[%emt 0:00:00]} Bd7+ {[%emt 0:00:00]} 50. Kb4 {[%emt 0:00:00] A balanced but interesting game.   Weighted Error Value: White=0.02 (flawless) /Black=0.01 (flawless) .  OK:         	White=17    	Black=24     Best:        	---       	Black=2} 1/2-1/2